Workbook

Sheet Физ. мех
O8: УТВЕРЖДАЮ
O9: Начальник лаборатории
O12: =#REF!+3 -> 
A13: ПРОТОКОЛ №
A14: классификации согласно ГОСТ 25100-2020
A15: лабораторного определения физических характеристик ГОСТ 5180-2015; лабораторного определения гранулометрического (зернового) состава ГОСТ 12536-2014; лабораторного определения максимальной плотности ГОСТ 22733-2016
A17: Дата получения образцов: | I17: =#REF!+1 -> 
A19: Наименование образца испытаний: | I19: =#REF! -> 
A21: Наименование объекта строительства:
A22: =#REF! -> 
A24: Наименование, юридический и фактический адрес производителя материала:
A26: Наименование, юридический и фактический адрес заказчика испытаний:
A28: Дата проведения испытаний:
A30: Фактический адрес провидения испытаний:
A32: Место отбора образцов:
A34: Метод отбора образцов:
A36: Условия проведения испытаний: | G36: Температура 23℃, влажность 65%.
A38: Оценка зернового состава и физико-механических свойств
A39: № п/п | B39: Наименование характеристик и его обозначение | K39: ГОСТ на методы испытаний | N39: Результаты испытаний | P39: Требования ГОСТ 25100-2020
A40: 1 | B40: Определение плотности грунта методом режущего кольца | K40: ГОСТ 5180—2015 | N40: =ROUND(AVERAGE(O60:R62),3) -> 1116.3 | P40: -
A41: 2 | B41: Определение влажности (в т. ч. гигроскопической) грунта методом высушивания до постоянной массы | K41: ГОСТ 5180—2015 | N41: =P70 -> 9.709855785
A42: 3 | B42: Определение нижнего предела пластичности — влажности грунта на границе раскатывания | K42: ГОСТ 5180—2015 | N42: =G110 -> 0
A43: 4 | B43: Определение верхнего предела пластичности — влажности грунта на границе текучести методом балансирного конуса | K43: ГОСТ 5180—2015
A44: 5 | B44: Метод лабораторного определения максимальной плотности | K44: ГОСТ 22733—2016 | N44: =J167 -> 1.721677074
A45: 6 | B45: Метод лабораторного определения максимальной влажности | K45: ГОСТ 22733—2016 | N45: =M167 -> 12.5
A46: 7 | B46: Определение плотности скелета (сухого) грунта расчетным методом | K46: ГОСТ 5180—2015 | N46: =N44/(1+0.01*N41) -> 1.56930028
A47: 8 | B47: Определение гранулометрического (зернового) состава грунтов ситовым методом | K47: ГОСТ 12536—2014
A48: 9 | B48: Методы лабораторного определения коэффициента фильтрации | K48: ГОСТ 25584—2016 | N48: =F226 -> 4.132983454
A50: Вывод: Согласно требованиям ГОСТ 25100-2020 грунт относится к
A52: Испытание провел:
A57: Определение плотности грунта методом режущего кольца
B58: Масса, г
A59: № п/п | B59: пустого кольца, m1 | E59: кольца с грунтом, m2 | H59: грунта m = m2 - m1 | K59: Объем грунта V, см³ | O59: Плотность грунта p, г/см² | T59: Наименование и состояние грунтов | X59: Диаметр внутренний d, мм | AA59: Высота h | AD59: Объем V, см³
A60: 1 | B60: 200 | E60: 694 | H60: =E60-B60 -> 494 | K60: =AD61 -> 462.2413767 | O60: =H60/K60*1000 -> 1068.705713 | T60: Немерзлые глинистые грунты | X60: 70 | AA60: =0.8*X60 -> 56 | AB60: 52 | AC60: =0.3*X60 -> 21 | AD60: =PI()*POWER(X60,2)*AB60/4/1000 -> 200.119452
A61: 2 | B61: 200 | E61: 706 | H61: =E61-B61 -> 506 | K61: =AD61 -> 462.2413767 | O61: =H61/K61*1000 -> 1094.666176 | T61: Немерзлые и сыпучемерзлые песчанные грунты | X61: 88 | AA61: =X61 -> 88 | AB61: 76 | AC61: =0.3*AA61 -> 26.4 | AD61: =PI()*POWER(X61,2)*AB61/4/1000 -> 462.2413767
A62: 3 | B62: 200 | E62: 748 | H62: =E62-B62 -> 548 | K62: =AD61 -> 462.2413767 | O62: =H62/K62*1000 -> 1185.527795
A64: Вывод:
A65: ="полученное значение естественной плотности методом режущего кольца составило: "&ROUND(AVERAGE(O60:R62),3)&" г/см³." -> полученное значение естественной плотности методом режущего кольца составило: 1116,3 г/см³.
A67: Результаты определения влажности (в т.ч. гигроскопической) грунта методом высушивания до постоянной массы
G68: Масса высушенного грунта с бюксом и крышкой m₀ , г | M68: Влажность w, %
A69: № п/п | B69: Масса бюкса m, г | D69: Масса влажного грунта с бюксом m₀, г | G69: 1-е взвешивание | J69: 2-е взвешивание | M69: Отдельной пробы | P69: Среднее
A70: 1 | B70: 10 | D70: 42 | G70: 40 | J70: 41 | M70: =(100*(D70-J70)/(J70-B70))+(100*(D70-G70)/(G70-B70)) -> 9.892473118 | P70: =AVERAGE(M70:O72) -> 9.709855785
A71: 2 | B71: 10 | D71: 39 | G71: 38 | J71: 37 | M71: =(100*(D71-J71)/(J71-B71))+(100*(D71-G71)/(G71-B71)) -> 10.97883598
A72: 3 | B72: 10 | D72: 48 | G72: 47 | J72: 46 | M72: =(100*(D72-J72)/(J72-B72))+(100*(D72-G72)/(G72-B72)) -> 8.258258258
A74: Вывод:
A75: ="полученное значение природной влажности грунта составило: "&ROUND(P70,1)&" %." -> полученное значение природной влажности грунта составило: 9,7 %.
A78: Применяемые средства измерений
A79: сушильный шкаф
A80: лабораторные весы по ГОСТ 24104
A81: металлические или стеклянные бюксы по ГОСТ 25336
A82: шпатель по ГОСТ 10778
A84: Определение нижнего предела пластичности — влажности грунта на границе раскатывания
G85: Масса высушенного грунта с бюксом m₀, г | M85: Граница текучести wp, %
A86: № п/п | B86: Масса бюкса m, г | D86: Масса влажного грунта с бюксом m₁, г | G86: 1-е взвешивание | J86: 2-е взвешивание | M86: отдельной пробы | P86: средняя | T86: СУПЕСЬ | W86: Число пластичности | Z86: =ROUND(Z88*100/200,2) -> 0.8 | AA86: 11.35 | AB86: 21.7 | AC86: 8.9 | AD86: 4.45 | AE86: 1.4
A87: 1 | B87: 10 | D87: 18 | G87: 17 | J87: 17 | M87: =(100*(D87-J87)/(J87-B87))+(100*(D87-G87)/(G87-B87)) -> 28.57142857 | P87: =AVERAGE(M87:O89) -> 25.26455026 | T87: Разновидность глинястых грунтов | W87: от | X87: до | Z87: 2 | AA87: 1 | AB87: 0.5 | AC87: 0.25 | AD87: 0.1 | AE87: ˂0,1
A88: 2 | B88: 10 | D88: 19 | G88: 18 | J88: 18 | M88: =(100*(D88-J88)/(J88-B88))+(100*(D88-G88)/(G88-B88)) -> 25 | T88: песчанистая | W88: 1 | X88: 7 | Z88: =$J$124 -> 1.6 | AA88: =$K$124 -> 22.7 | AB88: =$L$124 -> 43.4 | AC88: =$M$124 -> 17.8 | AD88: =$N$124 -> 8.9 | AE88: =$P$124 -> 2.8
A89: 3 | B89: 10 | D89: 20 | G89: 19 | J89: 19 | M89: =(100*(D89-J89)/(J89-B89))+(100*(D89-G89)/(G89-B89)) -> 22.22222222 | T89: пылеватая | W89: 1 | X89: 7 | Z89: =$J$124 -> 1.6 | AA89: =$K$124 -> 22.7 | AB89: =$L$124 -> 43.4 | AC89: =$M$124 -> 17.8 | AD89: =$N$124 -> 8.9 | AE89: =$P$124 -> 2.8
A91: Применяемые средства измерений | T91: СУГЛИНОК | W91: Число пластичности
A92: сушильный шкаф | T92: Разновидность глинястых грунтов | W92: от | X92: до | Z92: 2 | AA92: 1 | AB92: 0.5 | AC92: 0.25 | AD92: 0.1 | AE92: ˂0,1
A93: лабораторные весы по ГОСТ 24104 | T93: легкий песчанистый | W93: 7 | X93: 12 | Z93: =$J$124 -> 1.6 | AA93: =$K$124 -> 22.7 | AB93: =$L$124 -> 43.4 | AC93: =$M$124 -> 17.8 | AD93: =$N$124 -> 8.9 | AE93: =$P$124 -> 2.8
A94: металлические или стеклянные бюксы по ГОСТ 25336 | T94: легкий пылеватый | W94: 7 | X94: 12 | Z94: =$J$124 -> 1.6 | AA94: =$K$124 -> 22.7 | AB94: =$L$124 -> 43.4 | AC94: =$M$124 -> 17.8 | AD94: =$N$124 -> 8.9 | AE94: =$P$124 -> 2.8
A95: фарфоровая по ГОСТ 9147 | T95: тяжелый песчанистый | W95: 12 | X95: 17 | Z95: =$J$124 -> 1.6 | AA95: =$K$124 -> 22.7 | AB95: =$L$124 -> 43.4 | AC95: =$M$124 -> 17.8 | AD95: =$N$124 -> 8.9 | AE95: =$P$124 -> 2.8
A96: шпатель по ГОСТ 10778 | T96: тяжелый пылеватый | W96: 12 | X96: 17 | Z96: =$J$124 -> 1.6 | AA96: =$K$124 -> 22.7 | AB96: =$L$124 -> 43.4 | AC96: =$M$124 -> 17.8 | AD96: =$N$124 -> 8.9 | AE96: =$P$124 -> 2.8
A97: ступка с пестиком по ГОСТ 9147
A98: сито с отверстием 1 мм | T98: ГЛИНА | W98: Число пластичности
A99: мелкая терка | T99: Разновидность глинястых грунтов | W99: от | X99: до | Z99: 2 | AA99: 1 | AB99: 0.5 | AC99: 0.25 | AD99: 0.1 | AE99: ˂0,1
A100: вазелин | T100: легкая песчанистая | W100: 17 | X100: 27 | Z100: =$J$124 -> 1.6 | AA100: =$K$124 -> 22.7 | AB100: =$L$124 -> 43.4 | AC100: =$M$124 -> 17.8 | AD100: =$N$124 -> 8.9 | AE100: =$P$124 -> 2.8
T101: легкая пылеватая | W101: 17 | X101: 27 | Z101: =$J$124 -> 1.6 | AA101: =$K$124 -> 22.7 | AB101: =$L$124 -> 43.4 | AC101: =$M$124 -> 17.8 | AD101: =$N$124 -> 8.9 | AE101: =$P$124 -> 2.8
A102: Определение верхнего предела пластичности — влажности грунта на границе текучести методом балансирного конуса | T102: тяжелая | W102: 27 | X102: 30 | Z102: =$J$124 -> 1.6 | AA102: =$K$124 -> 22.7 | AB102: =$L$124 -> 43.4 | AC102: =$M$124 -> 17.8 | AD102: =$N$124 -> 8.9 | AE102: =$P$124 -> 2.8
G103: Масса высушенного грунта с бюксом m₀, г | M103: Граница текучести wL, % | W103: Число пластичности
A104: № п/п | B104: Масса бюкса m, г | D104: Масса влажного грунта с бюксом m₁, г | G104: 1-е взвешивание | J104: 2-е взвешивание | M104: отдельной пробы | P104: средняя | T104: Разновидность глинястых грунтов | W104: от | X104: до | Z104: 2 | AA104: 1 | AB104: 0.5 | AC104: 0.25 | AD104: 0.1 | AE104: ˂0,1
A105: 1 | B105: 10 | D105: 40 | G105: 36 | J105: 38 | M105: =(100*(D105-J105)/(J105-B105))+(100*(D105-G105)/(G105-B105)) -> 22.52747253 | P105: =AVERAGE(M105:O107) -> 27.89229927 | T105: Супесь | W105: 1 | X105: 7 | Z105: =$J$124 -> 1.6 | AA105: =$K$124 -> 22.7 | AB105: =$L$124 -> 43.4 | AC105: =$M$124 -> 17.8 | AD105: =$N$124 -> 8.9 | AE105: =$P$124 -> 2.8
A106: 2 | B106: 10 | D106: 43 | G106: 40 | J106: 39 | M106: =(100*(D106-J106)/(J106-B106))+(100*(D106-G106)/(G106-B106)) -> 23.79310345 | T106: Суглинок | W106: 7 | X106: 17 | Z106: =$J$124 -> 1.6 | AA106: =$K$124 -> 22.7 | AB106: =$L$124 -> 43.4 | AC106: =$M$124 -> 17.8 | AD106: =$N$124 -> 8.9 | AE106: =$P$124 -> 2.8
A107: 3 | B107: 10 | D107: 45 | G107: 39 | J107: 40 | M107: =(100*(D107-J107)/(J107-B107))+(100*(D107-G107)/(G107-B107)) -> 37.35632184 | T107: Глина | W107: 17 | X107: 30 | Z107: =$J$124 -> 1.6 | AA107: =$K$124 -> 22.7 | AB107: =$L$124 -> 43.4 | AC107: =$M$124 -> 17.8 | AD107: =$N$124 -> 8.9 | AE107: =$P$124 -> 2.8
A109: Вывод:
A110: ="полученное число пластичности lp, % (lp = wl - wp), составило: "&ROUND(P105-P87,1)&"%" -> полученное число пластичности lp, % (lp = wl - wp), составило: 2,6% | T110: =IF(AND(ROUND(P105-P87,1)>=W105,ROUND(P105-P87,1)<=X105),T105,IF(AND(ROUND(P105-P87,1)>=W106,ROUND(P105-P87,1)<=X106),T106,IF(AND(ROUND(P105-P87,1)>=W107,ROUND(P105-P87,1)<=X107),T107))) -> Супесь
A111: ="по числу пластичности грунт подразделяется как: "&IF(AND(ROUND(P105-P87,1)>=W105,ROUND(P105-P87,1)<=X105),T105,IF(AND(ROUND(P105-P87,1)>=W106,ROUND(P105-P87,1)<=X106),T106,IF(AND(ROUND(P105-P87,1)>=W107,ROUND(P105-P87,1)<=X107),T107)))&"." -> по числу пластичности грунт подразделяется как: Супесь.
A113: ="показатель текучести, состояние (консистенции) составляет: "&ROUND(P70-P87/ROUND(P105-P87,1),2)&"%." -> показатель текучести, состояние (консистенции) составляет: -0,01%.
A114: ="по числу текучести грунт подразделяется как: "&IF(AND(ROUND(P107-P89,1)>=W107,ROUND(P107-P89,1)<=X107),T107,IF(AND(ROUND(P107-P89,1)>=W108,ROUND(P107-P89,1)<=X108),T108,IF(AND(ROUND(P107-P89,1)>=#REF!,ROUND(P107-P89,1)<=#REF!),T109)))&"." -> по числу текучести грунт подразделяется как: . | T114: Разновидность крупнообломочных грунтов и песков | W114: Cu | X114: Степень неоднородности гранулометрического состава Cu, д.е
T116: Однородные | W116: =T141/T136 -> 5.681174514 | X116: Cu ≤ 3 | AB116: =IF(W116<=3,"Однородный","Неоднородный") -> Неоднородный
T117: Неоднородные | X117: Cu > 3
A119: Результаты зернового (гранулометрического) состава (ситовым методом) | S119: 100 | U119: X
U120: Диаметр | V120: доля | W120: Y | X120: Позиция | Y120: логорифрм | Z120: ср.диам. | AA120: относ.доля
C121: Остатки на ситах, % по массе | H121: Диаметр отверстий сит, мм | T121: А20 (>20мм) | U121: 20 | V121: 0 | W121: =(V121*100+W122) -> 100 | X121: 10 | Y121: =LOG10(X121) -> 1 | Z121: 5 | AA121: =IFERROR(V121/Z121,) -> 0 | AC121: =IF(SUM($AC122:AC$130)=0,IF(W121>10,W121,0),0) -> 0 | AD121: =IF(SUM($AD122:AD$130)=0,IF(W121>60,W121,0),0) -> 0 | AE121: =IF(AC121=W121,U121,0) -> 0 | AF121: =IF(AD121=W121,U121,0) -> 0
H122: 10 | I122: 5 | J122: 2 | K122: 1 | L122: 0.5 | M122: 0.25 | N122: 0.1 | O122: 0.05 | P122: ˂0,05 | T122: А10 (10-20мм) | U122: 10 | V122: =H123/$S$119 -> 0 | W122: 100 | X122: 9 | Y122: 0.9542425094 | Z122: =U122*1.4/10 -> 1.4 | AA122: =V122/Z122 -> 0 | AC122: =IF(SUM($AC123:AC$130)=0,IF(W122>10,W122,0),0) -> 0 | AD122: =IF(SUM($AD123:AD$130)=0,IF(W122>60,W122,0),0) -> 0 | AE122: 0 | AF122: 0
C123: Масса, г | H123: 0 | I123: 0 | J123: 1.6 | K123: 22.7 | L123: 43.4 | M123: 17.8 | N123: 8.9 | O123: 2.8 | P123: 2.8 | T123: А5 (5-10мм) | U123: 5 | V123: =I123/$S$119 -> 0 | W123: 100 | X123: 8 | Y123: 0.903089987 | Z123: =U123*1.4/10 -> 0.7 | AA123: 0 | AC123: =IF(SUM($AC124:AC$130)=0,IF(W123>10,W123,0),0) -> 0 | AD123: =IF(SUM($AD124:AD$130)=0,IF(W123>60,W123,0),0) -> 0 | AE123: 0 | AF123: 0 | AG123: =IF(SUM(V121:V124)*100>50," крупнообломочный гравийный","") -> 
C124: Частные остатки,% | H124: =H123/$S$119*100 -> 0 | I124: =I123/$S$119*100 -> 0 | J124: 1.6 | K124: 22.7 | L124: 43.4 | M124: 17.8 | N124: 8.9 | O124: 2.8 | P124: =P123/$S$119*100 -> 2.8 | T124: А2 (2-5мм) | U124: 2 | V124: =J123/$S$119 -> 0.016 | W124: 100 | X124: 7 | Y124: 0.84509804 | Z124: 0.28 | AA124: 0.05714285714 | AC124: =IF(SUM($AC125:AC$130)=0,IF(W124>10,W124,0),0) -> 0 | AD124: =IF(SUM($AD125:AD$130)=0,IF(W124>60,W124,0),0) -> 0 | AE124: 0 | AF124: 0 | AG124: =IF(V124*100>50," песок гравилистый","") -> 
C125: Полные остатки,% | H125: =H124 -> 0 | I125: =H125+I124 -> 0 | J125: 1.6 | K125: 24.3 | L125: 67.7 | M125: 85.5 | N125: 94.4 | O125: 97.2 | P125: =P124+O125 -> 100 | T125: А1 (1-2мм) | U125: 1 | V125: =K123/$S$119 -> 0.227 | W125: 98.4 | X125: 6 | Y125: 0.7781512504 | Z125: 0.14 | AA125: 1.621428571 | AC125: =IF(SUM($AC126:AC$130)=0,IF(W125>10,W125,0),0) -> 0 | AD125: =IF(SUM($AD126:AD$130)=0,IF(W125>60,W125,0),0) -> 0 | AE125: 0 | AF125: 0
T126: А0,5 (0,5-1мм) | U126: 0.5 | V126: =L123/$S$119 -> 0.434 | W126: 75.7 | X126: 5 | Y126: 0.6989700043 | Z126: 0.07 | AA126: 6.2 | AC126: =IF(SUM($AC127:AC$130)=0,IF(W126>10,W126,0),0) -> 0 | AD126: =IF(SUM($AD127:AD$130)=0,IF(W126>60,W126,0),0) -> 75.7 | AE126: 0 | AF126: 0.5 | AG126: =IF((V126+V125)*100>50," песок крупный","") -> песок крупный
T127: А0,25 (0,25-0,5мм) | U127: 0.25 | V127: =M123/$S$119 -> 0.178 | W127: 32.3 | X127: 4 | Y127: 0.6020599913 | Z127: 0.035 | AA127: =V127/Z127 -> 5.085714286 | AC127: =IF(SUM($AC$128:AC130)=0,IF(W127>10,W127,0),0) -> 0 | AD127: =IF(SUM($AD128:AD$130)=0,IF(W127>60,W127,0),0) -> 0 | AE127: 0 | AF127: =IF(AD127=W127,U127,0) -> 0 | AG127: =IF(V127*100>50," песок средней крупности","") -> 
T128: А0,1 (0,1-0,25мм) | U128: 0.1 | V128: =N123/$S$119 -> 0.089 | W128: 14.5 | X128: 3 | Y128: 0.4771212547 | Z128: 0.014 | AA128: 6.357142857 | AC128: =IF(SUM($AC$129:AC130)=0,IF(W128>10,W128,0),0) -> 14.5 | AD128: =IF(SUM($AD$129:AD130)=0,IF(W128>60,W128,0),0) -> 0 | AE128: 0.1 | AF128: =IF(AD128=W128,U128,0) -> 0 | AG128: =IF(V128*100>75," песок мелкий","") -> 
T129: А0,05 (0,05-0,1мм) | U129: 0.05 | V129: =O123/$S$119 -> 0.028 | W129: =(V129*100+W130) -> 5.6 | X129: 2 | Y129: 0.3010299957 | Z129: 0.007 | AA129: 4 | AC129: =IF(SUM($AC$130:AC131)=0,IF(W129>10,W129,0),0) -> 0 | AD129: =IF(SUM($AD$130:AD131)=0,IF(W129>60,W129,0),0) -> 0 | AE129: 0 | AF129: =IF(AD129=W129,U129,0) -> 0
T130: А0 (<0,05мм) | U130: 0.025 | V130: =P123/$S$119 -> 0.028 | W130: =V130*100 -> 2.8 | X130: 1 | Y130: 0 | Z130: 0.002 | AA130: =IFERROR(V130/Z130,) -> 14 | AC130: =IF(W130>10,W130,0) -> 0 | AD130: =IF(W130>60,W130,0) -> 0 | AE130: =IF(AC130=W130,U130,0) -> 0 | AF130: =IF(AD130=W130,U130,0) -> 0 | AG130: =IF((V129+V128)*100>25," песок пылеватый","") -> 
U131: 0.002 | W131: =V131*100 -> 0 | Z131: 0.00028 | AA131: =IFERROR(V131/Z131,) -> 0
U132: dсредн. | V132: =1/SUM(AA121:AA131) -> 0.02679425837 | AA132: =SUM(AA121:AA131) -> 37.32142857 | AE132: =SUM(AE121:AE130) -> 0.1 | AF132: =SUM(AF121:AF130) -> 0.5 | AG132: =AF132/AE132 -> 5
T134: Пересечение 10% | V134: Линия 2
T135: x | U135: y | V135: x | W135: y
T136: =TREND(OFFSET($U$120,MATCH(U136,$W$121:$W$131,-1),,2),OFFSET($W$120,MATCH(U136,$W$121:$W$131,-1),,2),U136,0) -> 0.07160299656 | U136: 10 | V136: =T136 -> 0.07160299656 | W136: 10
T137: 0.001 | U137: 10 | V137: =T136 -> 0.07160299656 | W137: 0.001
T139: Пересечение 60% | V139: Линия 2
T140: x | U140: y | V140: x | W140: y
T141: =TREND(OFFSET($U$120,MATCH(U141,$W$121:$W$131,-1),,2),OFFSET($W$120,MATCH(U141,$W$121:$W$131,-1),,2),U141,0) -> 0.4067891192 | U141: 60 | V141: =T141 -> 0.4067891192 | W141: 60
T142: 0.001 | U142: 60 | V142: =V141 -> 0.4067891192 | W142: 0.001
A150: 1. Так как масса частиц диаметром более мм составляет
A152: Применяемые средства измерений
A153: сита размером отверстий 10; 5; 2; 1; 0,5; 0,25; 0,1 мм
A154: весы лабораторные по ГОСТ 24104
A155: весы технические с относительной погрешностью взвешивания не более 0,1 %
A156: ступка фарфоровая по ГОСТ 9147
A157: пестик по ГОСТ 9147 с резиновым наконечником
A158: чашка фарфоровая по ГОСТ 9147
A159: груша резиновая
A160: кисточка
A161: песчаная баня
A162: шкаф сушильный
A164: Результаты определения максимальной плотности по ГОСТ 22733-2016
A166: № п/п | B166: Степени измерения влажности | D166: Влажность абсолютная W, % | F166: Плотность вл.грунта, г/см³ | H166: Плотность скелета грунта, г/см³ | J166: Максимальная плотность, г/см³ | M166: Оптимальная влажность, % | O166: Наименование грунта по ГОСТ 25100-2020
A167: 1 | B167: 4 | D167: 4.1 | F167: 1.74 | H167: =IF(F167/(1+0.01*D167)=0,"",F167/(1+0.01*D167)) -> 1.671469741 | J167: =MAX(H167:I173) -> 1.721677074 | M167: =INDIRECT("D"&MAX(ROW(D167:E173)*(D167:E173<>"")))-1.5 -> 12.5 | W167: 1 | X167: 2 | Y167: 3 | Z167: 4 | AA167: 5 | AB167: 6 | AC167: 7
A168: 2 | B168: 6 | D168: 5.2 | F168: 1.78 | H168: 1.692015209 | V168: X | W168: =D167 -> 4.1 | X168: =D168 -> 5.2 | Y168: =D169 -> 8.4 | Z168: =D170 -> 9.9 | AA168: =D171 -> 12.1 | AB168: =D172 -> 13.9 | AC168: =IF(D173=0,"",D173) -> 14
A169: 3 | B169: 8 | D169: 8.4 | F169: 1.84 | H169: 1.697416974 | V169: Y | W169: =$H167 -> 1.671469741 | X169: =$H168 -> 1.692015209 | Y169: =$H169 -> 1.697416974 | Z169: =$H170 -> 1.710646042 | AA169: =$H171 -> 1.721677074 | AB169: =$H172 -> 1.685689201 | AC169: =IF(H173=0,"",H173) -> 1.666666667
A170: 4 | B170: 10 | D170: 9.9 | F170: 1.88 | H170: 1.710646042
A171: 5 | B171: 12* | D171: 12.1 | F171: 1.93 | H171: 1.721677074
A172: 6 | B172: 14 | D172: 13.9 | F172: 1.92 | H172: 1.685689201
A173: 7 | B173: 16 | D173: 14 | F173: 1.9 | H173: 1.666666667
V175: х = | W175: =D171 -> 12.1 | X175: у = | Y175: 0
W176: =W175 -> 12.1 | Y176: =$H$171*1 -> 1.721677074
V177: х = | W177: 0 | X177: у = | Y177: =$Y$176 -> 1.721677074
W178: =W176 -> 12.1 | Y178: =$Y$177 -> 1.721677074
A196: Применяемые средства измерений
A197: весы для статического взвешивания на 2—5 кг среднего класса точности по ГОСТ 29329
A198: весы лабораторные на 0,2—1,0 кг 4-го класса точности по ГОСТ 24104
A199: линейка металлическая длиной не менее 300 мм по ГОСТ 427
A200: цилиндры мерные вместимостью 100 мл и 50 мл ценой деления не более 1 мл по ГОСТ 1770
A201: чашки металлические для испытаний вместимостью 5 л
A202: стаканчики весовые (алюминиевые бюксы) ВС-1 с крышками
A203: устройство растирочное или ступка фарфоровая с пестиком по ГОСТ 9147
A204: шкаф сушильный
A205: набор сит с диаметром отверстий 10 и 5 мм
A206: эксикатор Э-250 по ГОСТ 23932
A207: шпатель металлический
A208: нож лабораторный с прямым лезвием длиной не менее 150 мм
A210: Результаты определения коэффициента фильтрации
A212: Площадь поперечного сечения образца грунта, Fk, см² | J212: 20
A213: Площадь фильтрационной трубки над образцом грунта, Fn, см² | J213: 20
A214: Начальный напор H₀ | J214: 20
A215: Высота кольца lк | J215: 10
C217: Снижение уровня воды S, см | E217: Время снижения уровня S t, c | H217: Температура воды Тф | K217: Ct, с/см
C218: 1 | E218: 0 | H218: 24 | K218: =0.1*E218 -> 0 | N218: =LN($J$214/($J$214-C218)) -> 0.05129329439 | W218: 1 | X218: 2 | Y218: 3 | Z218: 4 | AA218: 5 | AB218: 6
C219: 2 | E219: 101 | H219: 24 | K219: 10.1 | N219: 0.1053605157 | V219: X | W219: =K218 -> 0 | X219: =K219 -> 10.1 | Y219: =K220 -> 21.9 | Z219: =K221 -> 34.9 | AA219: =K222 -> 47.1 | AB219: =K223 -> 60.7
C220: 3 | E220: 219 | H220: 24 | K220: 21.9 | N220: 0.1625189295 | V220: Y | W220: =N218 -> 0.05129329439 | X220: =N219 -> 0.1053605157 | Y220: =N220 -> 0.1625189295 | Z220: =N221 -> 0.2231435513 | AA220: =N222 -> 0.2876820725 | AB220: =N223 -> 0.3566749439
C221: 4 | E221: 349 | H221: 24 | K221: 34.9 | N221: 0.2231435513
C222: 5 | E222: 471 | H222: 24 | K222: 47.1 | N222: 0.2876820725
C223: 6 | E223: 607 | H223: 24 | K223: 60.7 | N223: 0.3566749439
A225: Коэффициент фильтрации, К | F225: =SUM(N218:P223)/SUM(K218:M223) -> 0.006792634844
A226: Коэффициент фильтрации, К10 | F226: =864*F225/(0.7+0.03*H218) -> 4.132983454
K228: х = | L228: =FORECAST(N229,K218:M223,N218:P223) -> 50.92968365 | M228: у = | N228: 0
L229: =L228 -> 50.92968365 | N229: =+ATAN((N218-N219)/(K218-K219))/PI()*180 -> 0.3067122771
K230: х = | L230: 0 | M230: у = | N230: =N229 -> 0.3067122771
L231: =L229 -> 50.92968365 | N231: =N230 -> 0.3067122771
A253: Применяемые средства измерений
A254: фильтрационный прибор
A255: весы лабораторные по ГОСТ 24104
A256: термометр с погрешностью измерения не более 0.5 °С по ГОСТ 28498

Sheet Норм.песок (hidden)
A1: Модуль крупности песка Мк | G1: Полный остаток на сите № 063 | M1: Содержание зерен крупностью
A2: Класс песка | B2: Группа песка | C2: свыше | D2: до | F2: Группа песка | G2: свыше | H2: до | J2: Группа песка | K2: Класс песка | L2: Столбец1 | M2: свыше 10 мм | N2: свыше 5 мм | O2: менее 0,16 мм | Q2: Группа песка | R2: Класс песка | S2: Столбец1 | T2: Содержание пылевидных и глинистых частиц | U2: Содержание глины в комках
A3: I | B3: Повышенной крупности | C3: 3 | D3: 3.5 | F3: Повышенной крупности | G3: 65 | H3: 75 | J3: Повышенной крупности | K3: I | L3: =Крупность[[#This Row],[Группа песка]]&Крупность[[#This Row],[Класс песка]] -> Повышенной крупностиI | M3: 0.5 | N3: 5 | O3: 5 | Q3: Повышенной крупности | R3: I | S3: =Содержание[[#This Row],[Группа песка]]&Содержание[[#This Row],[Класс песка]] -> Повышенной крупностиI | T3: 2 | U3: 0.25
A4: I | B4: Крупный | C4: 2.5 | D4: 3 | F4: Крупный | G4: 45 | H4: 65 | J4: Крупный | K4: I | L4: =Крупность[[#This Row],[Группа песка]]&Крупность[[#This Row],[Класс песка]] -> КрупныйI | M4: 0.5 | N4: 5 | O4: 5 | Q4: Крупный | R4: I | S4: =Содержание[[#This Row],[Группа песка]]&Содержание[[#This Row],[Класс песка]] -> КрупныйI | T4: 2 | U4: 0.25
A5: I | B5: Средний | C5: 2 | D5: 2.5 | F5: Средний | G5: 30 | H5: 45 | J5: средний | K5: I | L5: =Крупность[[#This Row],[Группа песка]]&Крупность[[#This Row],[Класс песка]] -> среднийI | M5: 0.5 | N5: 5 | O5: 5 | Q5: средний | R5: I | S5: =Содержание[[#This Row],[Группа песка]]&Содержание[[#This Row],[Класс песка]] -> среднийI | T5: 2 | U5: 0.25
A6: I | B6: Мелкий | C6: 1.5 | D6: 2 | F6: Мелкий | G6: 10 | H6: 30 | J6: Мелкий | K6: I | L6: =Крупность[[#This Row],[Группа песка]]&Крупность[[#This Row],[Класс песка]] -> МелкийI | M6: 0.5 | N6: 5 | O6: 10 | Q6: Мелкий | R6: I | S6: =Содержание[[#This Row],[Группа песка]]&Содержание[[#This Row],[Класс песка]] -> МелкийI | T6: 3 | U6: 0.25
A7: II | B7: Очень мелкий | C7: 1 | D7: 1.5 | F7: Очень мелкий | G7: 0 | H7: 10 | J7: Повышенной крупности | K7: II | L7: =Крупность[[#This Row],[Группа песка]]&Крупность[[#This Row],[Класс песка]] -> Повышенной крупностиII | M7: 5 | N7: 20 | O7: 10 | Q7: Повышенной крупности | R7: II | S7: =Содержание[[#This Row],[Группа песка]]&Содержание[[#This Row],[Класс песка]] -> Повышенной крупностиII | T7: 3 | U7: 0.5
A8: II | B8: Тонкий | C8: 0.7 | D8: 1 | F8: Тонкий | G8: Не нормируется | H8: Не нормируется | J8: Крупный | K8: II | L8: =Крупность[[#This Row],[Группа песка]]&Крупность[[#This Row],[Класс песка]] -> КрупныйII | M8: 5 | N8: 15 | O8: 15 | Q8: Крупный | R8: II | S8: =Содержание[[#This Row],[Группа песка]]&Содержание[[#This Row],[Класс песка]] -> КрупныйII | T8: 3 | U8: 0.5
A9: II | B9: Очень тонкий | C9: 0 | D9: 0.7 | F9: Очень тонкий | G9: Не нормируется | H9: Не нормируется | J9: Средний | K9: II | L9: =Крупность[[#This Row],[Группа песка]]&Крупность[[#This Row],[Класс песка]] -> СреднийII | M9: 5 | N9: 15 | O9: 15 | Q9: средний | R9: II | S9: =Содержание[[#This Row],[Группа песка]]&Содержание[[#This Row],[Класс песка]] -> среднийII | T9: 3 | U9: 0.5
J10: Мелкий | K10: II | L10: =Крупность[[#This Row],[Группа песка]]&Крупность[[#This Row],[Класс песка]] -> МелкийII | M10: 0.5 | N10: 10 | O10: 20 | Q10: Мелкий | R10: II | S10: =Содержание[[#This Row],[Группа песка]]&Содержание[[#This Row],[Класс песка]] -> МелкийII | T10: 5 | U10: 0.5
J11: Очень мелкий | K11: II | L11: =Крупность[[#This Row],[Группа песка]]&Крупность[[#This Row],[Класс песка]] -> Очень мелкийII | M11: 0.5 | N11: 10 | O11: 20 | Q11: Очень мелкий | R11: II | S11: =Содержание[[#This Row],[Группа песка]]&Содержание[[#This Row],[Класс песка]] -> Очень мелкийII | T11: 5 | U11: 0.5
J12: Тонкий | K12: II | L12: =Крупность[[#This Row],[Группа песка]]&Крупность[[#This Row],[Класс песка]] -> ТонкийII | M12: Не допускается | N12: Не допускается | O12: Не нормируется | Q12: Тонкий | R12: II | S12: =Содержание[[#This Row],[Группа песка]]&Содержание[[#This Row],[Класс песка]] -> ТонкийII | T12: 10 | U12: 1
J13: Очень тонкий | K13: II | L13: =Крупность[[#This Row],[Группа песка]]&Крупность[[#This Row],[Класс песка]] -> Очень тонкийII | M13: Не допускается | N13: Не допускается | O13: Не нормируется | Q13: Очень тонкий | R13: II | S13: =Содержание[[#This Row],[Группа песка]]&Содержание[[#This Row],[Класс песка]] -> Очень тонкийII | T13: 10 | U13: 1

Sheet Сотрудники (hidden)
A1: Должность | B1: Ф.И.О
A2: Начальник лаборатории | B2: / А. Н. Терешев /
A3: Замначальника лаборатории | B3: / А. С. Анисимов /
A4: Инженер лаборатории | B4: / Д. С. Шадрин /
A5: Инженер лаборатории | B5: / А. А. Шмельц /
A6: Инженер лаборатории | B6: / Р. С. Яников /
A7: Инженер лаборатории | B7: / А. С. Дорофеев /
